bitfinex-derivatives/quotes_BNBF0:USTF0_20250309
["timestamp","ask_amount","ask_price","bid_price","bid_amount"]
[1741484163594,0.89744718,591.37,590.91,2.74546101]
[1741484163797,0.89744718,591.36,590.91,2.74546101]
[1741484164097,0.89744718,591.35,590.91,2.74546101]
[1741484164297,0.89744718,591.34,590.91,2.74546101]
[1741484164493,0.89744718,591.33,590.91,2.74546101]
[1741484164697,0.89744718,591.32,590.91,2.74546101]
[1741484164998,0.89744718,591.31,590.91,2.74546101]
[1741484165198,0.89744718,591.3,590.91,2.74546101]
[1741484165398,0.89744718,591.29,590.91,2.74546101]
[1741484165593,0.89744718,591.28,590.91,2.74546101]
[1741484165793,0.89744718,591.27,590.91,2.74546101]
[1741484165996,0.89744718,591.26,590.91,2.74546101]
[1741484166199,0.89744718,591.25,590.91,2.74546101]
[1741484166499,0.89744718,591.24,590.91,2.74546101]
[1741484166701,0.89744718,591.23,590.91,2.74546101]
[1741484166895,0.89744718,591.22,590.91,2.74546101]
[1741484167093,0.89744718,591.21,590.91,2.74546101]
[1741484167299,0.89744718,591.2,590.91,2.74546101]
[1741484167500,0.89744718,591.19,590.91,2.74546101]
[1741484167801,0.89744718,591.18,590.91,2.74546101]
[1741484168098,0.89653133,591.17,590.91,2.74546101]
[1741484168301,0.89653133,591.16,590.91,2.74546101]
[1741484168495,0.89653133,591.15,590.91,2.74546101]
[1741484168700,0.89653133,591.14,590.91,2.74546101]
[1741484168999,0.89653133,591.13,590.91,2.74546101]
[1741484169199,0.89653133,591.12,590.91,2.74546101]
[1741484169400,0.89653133,591.11,590.91,2.74546101]
[1741484169593,0.29447105,591.27,590.91,2.74546101]
[1741484169594,0.89653133,591.1,590.91,2.74546101]
[1741484169798,0.89653133,591.09,590.91,2.74546101]
[1741484169994,0.89653133,591.08,590.91,2.74546101]
[1741484170196,0.89653133,591.07,590.91,2.74546101]
[1741484170395,0.89653133,591.06,590.91,2.407]
[1741484170599,0.89653133,591.05,590.91,2.407]
[1741484170796,0.89653133,591.04,590.91,2.407]
[1741484170993,0.89653133,591.03,590.91,2.407]
[1741484171197,0.89653133,591.02,590.91,2.407]
[1741484171400,0.89653133,591.01,590.91,2.407]
[1741484171598,0.29447105,591.27,590.91,2.407]
[1741484171801,0.89610674,591.26,590.91,2.407]
[1741484172000,0.89610674,591.25,590.91,2.407]
[1741484172198,0.89610674,591.24,590.91,2.407]
[1741484172395,0.89610674,591.23,590.91,2.407]
[1741484172595,0.89610674,591.22,590.91,2.407]
[1741484172800,0.89610674,591.21,590.91,2.407]
[1741484173101,0.89610674,591.2,590.91,2.407]
[1741484173303,0.89610674,591.19,590.91,2.407]
[1741484173502,0.89610674,591.18,590.91,2.407]
[1741484173702,0.89610674,591.17,590.91,2.407]
[1741484174003,0.89610674,591.16,590.91,2.407]
[1741484174200,0.89610674,591.15,590.91,2.407]
[1741484174401,0.89610674,591.14,590.91,2.407]
[1741484174601,0.89610674,591.13,590.91,2.407]
[1741484174801,0.89610674,591.12,590.91,2.407]
[1741484175001,0.89610674,591.11,590.91,2.407]
[1741484175201,0.89610674,591.1,590.91,2.407]
[1741484175399,0.89610674,591.09,590.91,2.407]
[1741484175598,0.89610674,591.08,590.91,2.407]
[1741484175804,0.89610674,591.07,590.91,2.407]
[1741484176001,0.89610674,591.06,590.91,2.407]
[1741484176202,0.89610674,591.05,590.91,1.159]
[1741484176405,0.89610674,591.04,590.91,1.159]
[1741484176605,0.2944723,591.27,590.91,1.159]
[1741484176908,0.89581134,591.26,590.91,1.159]
[1741484177207,0.89581134,591.25,590.91,1.159]
[1741484177404,0.89581134,591.24,590.91,1.159]
[1741484177707,0.89581134,591.23,590.91,1.159]
[1741484178008,0.89581134,591.22,590.91,1.159]
[1741484178307,0.89581134,591.21,590.91,1.159]
[1741484178508,0.89581134,591.2,590.91,1.159]
[1741484178709,0.89581134,591.19,590.91,1.159]
[1741484178903,0.89581134,591.18,590.91,1.159]
[1741484179101,0.89581134,591.17,590.91,1.159]
[1741484179305,0.89581134,591.16,590.91,1.159]
[1741484179502,0.89581134,591.15,590.91,1.159]
[1741484179705,0.89581134,591.14,590.91,1.159]
[1741484179906,0.89581134,591.13,590.91,1.159]
[1741484180106,0.29447105,591.27,590.91,1.159]
[1741484180107,0.89581134,591.12,590.91,1.159]
[1741484180304,0.89581134,591.11,590.91,1.159]
[1741484180508,0.89581134,591.1,590.91,1.159]
[1741484180710,0.89581134,591.09,590.91,1.159]
[1741484181011,0.89581134,591.08,590.91,1.159]
[1741484181203,0.29447105,591.27,590.91,1.159]
[1741484181204,0.89581134,591.07,590.91,1.159]
[1741484181408,0.29447105,591.27,590.91,1.159]
[1741484181409,0.89581134,591.06,590.91,1.159]
[1741484181605,0.89581134,591.05,590.91,1.159]
[1741484181906,0.89581134,591.04,590.91,1.159]
[1741484182107,0.89581134,591.03,590.91,1.159]
[1741484182312,0.70769822,592.13,590.91,1.159]
[1741484182313,0.89581134,591.02,590.91,1.159]
[1741484182512,0.89581134,591.01,590.91,1.159]
[1741484182710,0.89581134,591.0,590.91,1.159]
[1741484182911,0.89581134,590.99,590.91,1.159]
[1741484183112,0.89581134,590.98,590.91,1.159]
[1741484183310,0.89581134,590.97,590.91,1.159]
[1741484183508,0.89581134,590.96,590.91,1.159]
[1741484183714,0.89581134,590.95,590.91,1.159]
[1741484183913,0.29450968,591.18,590.91,1.159]
[1741484184112,0.89537599,591.17,590.91,1.159]
[1741484184307,0.89537599,591.16,590.91,1.159]
[1741484184514,0.88778895,591.15,590.91,1.159]
[1741484184713,1.2617338,591.87,590.91,1.159]
[1741484184910,0.64886591,591.86,590.91,1.159]
[1741484185110,0.64887162,591.85,590.91,1.159]
[1741484185311,0.33792917,591.84,590.91,1.159]
[1741484185510,0.31094816,591.83,590.91,1.159]
[1741484186415,1.2617338,591.81,590.91,1.159]
[1741484186616,0.64890017,591.8,590.91,1.159]
[1741484186816,1.2617338,591.81,590.91,1.159]
[1741484186817,0.64890588,591.79,590.91,1.159]
[1741484187214,0.31094816,591.78,590.91,1.159]
[1741484187916,1.2617338,591.72,590.91,1.159]
[1741484188117,0.31094174,591.71,590.91,1.159]
[1741484189216,0.29443368,591.7,590.91,1.159]
[1741484189513,0.31094174,591.69,590.91,1.159]
[1741484192317,0.29443617,591.68,590.91,1.159]
[1741484192517,0.60537791,591.68,590.91,1.159]
[1741484192719,0.31094174,591.67,590.91,1.159]
[1741484194025,0.31094174,591.67,590.91,3.312]
[1741484194322,0.31094174,591.66,590.91,3.312]
[1741484194522,0.31094174,591.78,590.91,3.312]
[1741484194716,0.31094174,591.77,590.91,3.312]
[1741484194915,0.31094174,591.76,590.91,3.312]
[1741484195122,0.31094174,591.75,590.91,3.312]
[1741484195323,0.31094174,591.74,590.91,3.312]
[1741484195524,0.31094174,591.75,590.91,3.312]
[1741484195823,0.31094174,591.74,590.91,3.312]
[1741484196019,0.31094174,591.75,590.91,3.312]
[1741484196225,0.31094174,591.74,590.91,3.312]
[1741484196426,0.89492027,591.73,590.91,3.312]
[1741484196621,1.54382432,591.72,590.91,3.312]
[1741484196820,1.54383003,591.71,590.91,3.312]
[1741484197019,1.20582662,591.7,590.91,3.312]
[1741484197221,1.20582662,591.69,590.91,3.312]
[1741484197521,1.20582662,591.68,590.91,3.312]
[1741484197725,1.20582662,591.67,590.91,3.312]
[1741484197924,0.89488488,591.66,590.91,3.312]
[1741484198226,1.20587978,591.65,590.91,3.312]
[1741484198420,1.20587978,591.64,590.91,3.312]
[1741484198622,1.20566823,591.63,590.91,3.312]
[1741484198824,1.20566937,591.62,590.91,3.312]
[1741484199024,0.33800341,591.71,590.91,3.312]
[1741484199025,2.46740317,591.61,590.91,3.312]
[1741484199223,1.20566937,591.6,590.91,3.312]
[1741484199435,1.20566937,591.59,590.91,3.312]
[1741484199728,1.20566937,591.58,590.91,3.312]
[1741484199924,1.2617338,591.61,590.91,3.312]
[1741484199925,1.20566937,591.57,590.91,3.312]
[1741484200228,1.20566937,591.56,590.91,3.312]
[1741484200430,1.20566937,591.55,590.91,3.312]
[1741484200625,1.20566937,591.54,590.91,3.312]
[1741484200829,1.20566937,591.53,590.91,3.312]
[1741484201030,1.20566937,591.52,590.91,3.312]
[1741484201231,1.20566937,591.51,590.91,3.312]
[1741484201531,1.20566937,591.5,590.91,3.312]
[1741484201727,1.2056569,591.49,590.91,3.312]
[1741484202032,1.2056569,591.48,590.91,3.312]
[1741484202229,1.2056569,591.47,590.91,3.312]
[1741484202423,1.2056569,591.46,590.91,3.312]
[1741484202626,1.2056569,591.45,590.91,3.312]
[1741484202827,1.2056569,591.44,590.91,3.312]
[1741484203025,0.89467333,591.43,590.91,3.312]
[1741484203228,0.89467333,591.42,590.91,3.312]
[1741484203428,0.89467333,591.41,590.91,3.312]
[1741484203630,0.89467333,591.4,590.91,3.312]
[1741484203830,0.89467333,591.39,590.91,3.312]
[1741484204033,0.89467333,591.38,590.91,3.312]
[1741484204331,0.89467333,591.37,590.91,2.153]
[1741484204532,0.89467333,591.36,590.91,2.153]
[1741484204732,0.89467333,591.35,590.91,2.153]
[1741484204933,0.89467333,591.34,590.91,2.153]
[1741484205133,0.89467333,591.33,590.91,2.153]
[1741484205334,0.89467333,591.32,590.91,2.153]
[1741484205532,0.89467333,591.31,590.91,2.153]
[1741484205730,0.89479571,591.3,590.91,2.153]
[1741484205932,0.89479571,591.29,590.91,2.153]
[1741484206132,0.89479571,591.28,590.91,2.153]
[1741484206334,0.89479571,591.27,590.91,2.153]
[1741484206636,0.89479571,591.26,590.91,2.153]
[1741484206830,0.89479571,591.25,590.91,2.153]
[1741484207027,0.89479571,591.24,590.91,2.153]
[1741484207231,0.89479571,591.23,590.91,2.153]
[1741484207431,0.89479571,591.22,590.91,2.153]
[1741484207628,0.89479571,591.21,590.91,2.153]
[1741484207828,0.89479571,591.2,590.91,2.153]
[1741484208032,0.89479571,591.19,590.91,2.153]
[1741484208236,0.89479571,591.18,590.91,2.153]
[1741484208534,0.89479571,591.17,590.91,2.153]
[1741484208735,0.89479571,591.16,590.91,2.153]
[1741484209037,0.89479571,591.15,590.91,2.153]
[1741484209238,0.89479571,591.14,590.91,2.153]
[1741484209433,0.89479571,591.13,590.91,2.153]
[1741484209641,0.89479571,591.12,590.91,2.153]
[1741484209836,0.89479571,591.11,590.91,2.153]
[1741484210137,0.89479571,591.1,590.91,2.153]
[1741484210338,0.89479571,591.09,590.91,2.153]
[1741484210529,0.89479571,591.08,590.91,2.153]
[1741484210731,0.89479571,591.07,590.91,2.153]
[1741484210936,0.89479571,591.06,590.91,2.153]
[1741484211135,0.89479571,591.05,590.91,2.153]
[1741484211335,0.89479571,591.04,590.91,2.153]
[1741484211530,0.89479571,591.03,590.91,2.153]
[1741484211730,0.89479571,591.02,590.91,2.153]
[1741484211937,0.89479571,591.01,590.91,2.153]
[1741484212131,0.89479571,591.0,590.91,2.153]
[1741484212338,0.89479571,590.99,590.91,2.153]
[1741484212532,0.89479571,590.98,590.91,2.153]
[1741484212739,0.89479571,590.97,590.91,2.153]
[1741484212934,0.89479571,590.96,590.91,2.153]
[1741484213132,0.89479571,590.95,590.91,2.153]
[1741484213334,0.89479571,590.94,590.91,2.153]
[1741484213535,0.89479571,590.93,590.91,2.153]
[1741484213737,0.89479571,590.92,590.91,2.153]
[1741484215032,0.89562818,590.92,590.91,2.153]
[1741484219143,0.89562818,590.92,590.91,0.948]
[1741484220143,0.89562818,590.92,590.86,1.294]
[1741484220342,0.89562818,590.91,590.86,1.294]
[1741484220544,0.89562818,590.9,590.86,1.294]
[1741484220739,0.89562818,590.89,590.86,1.294]
[1741484220937,0.89587515,590.88,590.86,1.294]
[1741484221137,0.89587515,590.87,590.86,1.294]
[1741484224743,1.2617338,591.55,590.86,1.294]
[1741484224940,1.20714322,591.54,590.86,1.294]
[1741484225141,1.20714322,591.53,590.86,1.294]
[1741484225346,1.20714322,591.52,590.86,1.294]
[1741484225649,1.20714322,591.51,590.86,1.294]
[1741484225849,1.20714322,591.5,590.86,1.294]
[1741484226043,1.20714322,591.49,590.86,1.294]
[1741484226246,1.20714322,591.48,590.86,1.294]
[1741484226448,1.20714322,591.47,590.86,1.294]
[1741484226649,1.20714322,591.46,590.86,1.294]
[1741484226850,1.20715786,591.45,590.86,1.294]
[1741484227047,1.20715786,591.44,590.86,1.294]
[1741484227248,1.20715786,591.43,590.86,1.294]
[1741484227447,0.89617138,591.42,590.86,1.294]
[1741484227648,0.89617138,591.41,590.86,1.294]
[1741484227850,0.89617138,591.4,590.86,1.294]
[1741484228043,0.89617138,591.39,590.86,1.294]
[1741484228245,0.89617138,591.38,590.86,1.294]
[1741484228445,0.89617138,591.37,590.86,1.294]
[1741484228648,0.89617138,591.36,590.86,1.294]
[1741484228851,0.89617138,591.35,590.86,1.294]
[1741484229049,0.89617138,591.34,590.86,1.294]
[1741484229349,0.89617138,591.33,590.86,1.294]
[1741484229551,0.89617138,591.32,590.86,1.294]
[1741484229751,0.89617138,591.31,590.86,1.294]
[1741484229952,0.89617138,591.3,590.86,1.294]
[1741484230148,0.89617138,591.29,590.86,1.294]
[1741484230352,0.89617138,591.28,590.86,1.294]
[1741484230551,0.89617138,591.27,590.86,1.294]
[1741484230751,0.89617138,591.26,590.86,1.294]
[1741484230947,0.89617138,591.25,590.86,1.294]
[1741484231151,0.89617138,591.24,590.86,1.294]
[1741484231452,0.89617138,591.23,590.86,1.294]
[1741484231649,0.89617138,591.22,590.86,1.294]
[1741484231849,0.89617138,591.21,590.86,1.294]
[1741484232050,0.89617138,591.2,590.86,1.294]
[1741484232250,0.89617138,591.19,590.75,0.855]
[1741484232447,0.89617138,591.18,590.75,0.855]
[1741484232753,0.89617138,591.17,590.75,0.855]
[1741484232946,0.89617138,591.16,590.75,0.855]
[1741484233144,1.2617338,591.54,590.75,0.855]
[1741484233145,0.89617138,591.15,590.75,0.855]
[1741484233351,0.89617138,591.14,590.75,0.855]
[1741484233545,0.89617138,591.13,590.75,0.855]
[1741484233750,0.89617138,591.12,590.75,0.855]
[1741484233954,0.89617138,591.11,590.75,0.855]
[1741484234155,0.89617138,591.1,590.75,0.855]
[1741484234355,0.89617138,591.09,590.75,0.855]
[1741484234654,0.89617138,591.08,590.75,0.855]
[1741484234847,0.89617138,591.07,590.75,0.855]
[1741484235049,0.89617138,591.06,590.75,0.855]
[1741484235248,0.89617138,591.05,590.75,0.855]
[1741484235447,0.89617138,591.04,590.75,0.855]
[1741484235649,0.89617138,591.03,590.75,0.855]
[1741484235955,0.2945558,591.11,590.75,0.855]
[1741484235956,0.89617138,591.02,590.75,0.855]
[1741484236150,0.89617138,591.01,590.75,0.855]
[1741484236348,0.89617138,591.0,590.75,0.855]
[1741484236655,0.89617138,590.99,590.75,0.855]
[1741484236856,0.89617138,590.98,590.75,0.855]
[1741484237057,0.89617138,590.97,590.75,0.855]
[1741484237258,0.89617138,590.96,590.75,0.855]
[1741484237458,0.89617138,590.95,590.75,0.855]
[1741484237758,0.89617138,590.94,590.75,0.855]
[1741484237959,0.89617138,590.93,590.75,0.855]
[1741484238158,0.89617138,590.92,590.75,0.855]
[1741484238358,0.89617138,590.91,590.75,0.855]
[1741484238657,0.89617138,590.9,590.75,0.855]
[1741484238858,0.89617138,590.89,590.75,0.855]
[1741484239058,0.89617138,590.88,590.75,0.855]
[1741484239260,0.89617138,590.87,590.75,0.855]
[1741484239553,0.89617138,590.86,590.58,1.105]
[1741484239759,0.89617138,590.85,590.58,1.105]
[1741484240059,0.89617138,590.84,590.58,1.105]
[1741484240359,0.89617138,590.83,590.58,1.105]
[1741484240558,0.89617138,590.82,590.58,1.105]
[1741484240758,0.89617138,590.81,590.58,1.105]
[1741484240962,0.89695717,590.8,590.58,1.105]
[1741484241161,0.89698672,590.79,590.58,1.105]
[1741484241359,0.89698672,590.78,590.58,1.105]
[1741484241559,0.89698672,590.77,590.58,1.105]
[1741484241755,0.89698672,590.76,590.58,1.105]
[1741484241959,0.89698672,590.75,590.58,1.105]
[1741484242161,0.89698672,590.74,590.58,1.105]
[1741484242359,1.2617338,591.41,590.58,1.105]
[1741484242560,1.20818015,591.4,590.58,1.105]
[1741484242760,1.20818015,591.39,590.59,0.885]
[1741484242960,1.20818015,591.38,590.59,0.885]
[1741484243160,1.20818015,591.37,590.59,0.885]
[1741484243361,1.20818015,591.36,590.59,0.885]
[1741484243562,1.20818015,591.35,590.59,0.885]
[1741484243761,1.20818015,591.34,590.59,0.885]
[1741484243960,1.20818015,591.33,590.59,0.885]
[1741484244160,0.89715189,591.32,590.59,0.885]
[1741484244355,0.89715189,591.31,590.59,0.885]
[1741484244562,0.89715189,591.3,590.59,0.885]
[1741484244863,0.89715189,591.29,590.59,0.885]
[1741484245066,0.89715189,591.28,590.59,0.885]
[1741484245359,0.89715189,591.27,590.59,0.885]
[1741484245658,0.89715189,591.26,590.59,0.885]
[1741484245863,0.89715189,591.25,590.59,0.885]
[1741484246063,0.89715189,591.24,590.59,0.885]
[1741484246259,0.89715189,591.23,590.59,0.885]
[1741484246459,0.89715189,591.22,590.59,0.885]
[1741484246662,0.89715189,591.21,590.59,0.885]
[1741484246865,0.89715189,591.2,590.59,0.885]
[1741484247063,0.89715189,591.19,590.59,0.885]
[1741484247265,0.89715189,591.18,590.59,0.885]
[1741484247469,0.89715189,591.17,590.59,0.885]
[1741484247662,0.89715189,591.16,590.59,0.885]
[1741484247866,0.89715189,591.15,590.59,0.885]
[1741484248169,0.89715189,591.14,590.59,0.885]
[1741484248367,0.89715189,591.13,590.59,0.885]
[1741484248568,0.89715189,591.12,590.59,0.885]
[1741484248766,0.89715189,591.11,590.59,0.885]
[1741484248963,0.89715189,591.1,590.59,0.885]
[1741484249166,0.89715189,591.09,590.59,0.885]
[1741484249363,0.89715189,591.08,590.59,0.885]
[1741484249567,0.89715189,591.07,590.59,0.885]
[1741484249767,0.89715189,591.06,590.59,0.885]
[1741484250063,0.89715189,591.05,590.59,0.885]
[1741484250271,0.89715189,591.04,590.59,0.885]
[1741484250471,0.89715189,591.03,590.59,0.885]
[1741484250668,0.89715189,591.02,590.59,0.885]
[1741484250866,0.89715189,591.01,590.59,0.885]
[1741484251070,0.89715189,591.0,590.59,0.885]
[1741484251270,0.89715189,590.99,590.59,0.885]
[1741484251474,0.89715189,590.98,590.59,0.885]
[1741484251670,0.89715189,590.97,590.59,0.885]
[1741484251968,0.89715189,590.96,590.59,0.885]
[1741484252168,0.89715189,590.95,590.59,0.885]
[1741484252369,0.89715189,590.94,590.59,0.885]
[1741484252567,0.89715189,590.93,590.59,0.885]
[1741484252770,0.89715189,590.92,590.59,0.885]
[1741484252967,0.89715189,590.91,590.59,0.885]
[1741484253169,0.89715189,590.9,590.59,0.885]
[1741484253371,0.89715189,590.89,590.59,0.885]
[1741484253572,0.89715189,590.88,590.59,0.885]
[1741484253773,0.89715189,590.87,590.59,0.885]
[1741484253974,0.89715189,590.86,590.59,0.885]
[1741484254173,0.89715189,590.85,590.59,0.885]
[1741484254376,0.89715189,590.84,590.59,0.885]
[1741484254569,0.89715189,590.83,590.59,0.885]
[1741484254775,0.33800341,591.71,590.59,0.885]
[1741484254969,1.20878639,591.7,590.59,0.885]
[1741484255171,1.20878639,591.69,590.59,0.885]
[1741484255374,1.20878639,591.68,590.59,0.885]
[1741484255575,1.20878639,591.67,590.59,0.885]
[1741484255876,1.20878639,591.66,590.59,0.885]
[1741484256077,1.20878639,591.65,590.59,0.885]
[1741484256275,1.20878639,591.64,590.59,0.885]
[1741484256473,1.20878639,591.63,590.59,0.885]
[1741484256676,1.20878639,591.62,590.59,0.885]
[1741484256874,1.20878639,591.61,590.59,0.885]
[1741484257074,1.20878639,591.6,590.59,0.885]
[1741484257370,0.89781606,591.59,590.59,0.885]
[1741484257574,0.89781606,591.58,590.59,0.885]
[1741484257770,0.89781606,591.57,590.59,0.885]
[1741484257976,0.89781606,591.56,590.59,0.885]
[1741484258177,0.89781606,591.55,590.59,0.885]
[1741484258378,0.89781606,591.54,590.59,0.885]
[1741484258579,0.89781606,591.53,590.59,0.885]
[1741484258778,0.89781606,591.52,590.59,0.885]
[1741484259080,0.89781606,591.51,590.59,0.885]
[1741484259274,0.89781606,591.5,590.59,0.885]
[1741484259477,0.89781606,591.49,590.59,0.885]
[1741484259680,0.89781606,591.48,590.59,0.885]
[1741484259875,0.89781606,591.47,590.59,0.885]
[1741484260076,0.89781606,591.46,590.59,0.885]
[1741484260277,0.89781606,591.45,590.59,0.885]
[1741484260479,0.89781606,591.44,590.59,0.885]
[1741484260777,0.89781606,591.43,590.59,0.885]
[1741484260979,0.89781606,591.42,590.59,0.885]
[1741484261177,0.89781606,591.41,590.59,0.885]
[1741484261482,0.89781606,591.4,590.59,0.885]
[1741484261678,0.89781606,591.39,590.59,0.885]
[1741484261982,0.89781606,591.38,590.59,0.885]
[1741484262183,0.89781606,591.37,590.59,0.885]
[1741484262381,0.89781606,591.36,590.59,0.885]
[1741484262582,0.89781606,591.35,590.59,0.885]
[1741484262882,0.89781606,591.34,590.59,0.885]
[1741484263185,0.89781606,591.33,590.59,0.885]
[1741484263378,0.89781606,591.32,590.59,0.885]
[1741484263577,0.89781606,591.31,590.59,0.885]
[1741484263778,0.89781606,591.3,590.59,0.885]
[1741484263979,0.89781606,591.29,590.59,0.885]
[1741484264184,0.29451342,591.33,590.59,0.885]
[1741484264185,0.89781606,591.28,590.59,0.885]
[1741484264377,0.89781606,591.27,590.59,0.885]
[1741484264578,0.89781606,591.26,590.59,0.885]
[1741484264777,0.89781606,591.25,590.59,0.885]
[1741484264981,0.89781606,591.24,590.59,0.885]
[1741484265177,0.89781606,591.23,590.59,0.885]
[1741484265382,0.89781606,591.22,590.59,0.885]
[1741484265684,0.89781606,591.21,590.59,0.885]
[1741484265885,0.89781606,591.2,590.59,0.885]
[1741484266185,0.89781606,591.19,590.59,0.885]
[1741484266379,0.89781606,591.18,590.59,0.885]
[1741484266578,0.89781606,591.17,590.6,0.937]
[1741484266783,0.89781606,591.16,590.6,0.937]
[1741484267083,0.89781606,591.15,590.6,0.937]
[1741484267288,0.89781606,591.14,590.6,0.937]
[1741484267589,0.89781606,591.13,590.6,0.937]
[1741484267782,0.89781606,591.12,590.6,0.937]
[1741484267985,0.89781606,591.11,590.6,0.937]
[1741484268188,0.89781606,591.1,590.6,0.937]
[1741484268383,0.89781606,591.09,590.6,0.937]
[1741484268587,0.89781606,591.08,590.61,1.087]
[1741484268787,0.89781606,591.07,590.61,1.087]
[1741484268984,0.89781606,591.06,590.61,1.087]
[1741484269189,0.89781606,591.05,590.61,1.087]
[1741484269390,0.89781606,591.04,590.61,1.087]
[1741484269588,0.89781606,591.03,590.61,1.087]
[1741484269789,0.89781606,591.02,590.61,1.087]
[1741484269989,0.89781606,591.01,590.61,1.087]
[1741484270191,0.89781606,591.0,590.61,1.087]
[1741484270392,0.89781606,590.99,590.61,1.087]
[1741484270591,0.89781606,590.98,590.61,1.087]
[1741484270796,0.89781606,590.97,590.61,1.087]
[1741484270990,0.89781606,590.96,590.61,1.087]
[1741484271190,0.89781606,590.95,590.61,1.087]
[1741484271497,0.89781606,590.94,590.61,1.087]
[1741484271794,0.89781606,590.93,590.61,1.087]
[1741484271997,0.89781606,590.92,590.61,1.087]
[1741484272193,0.33800341,591.71,590.61,1.087]
[1741484272394,1.20775298,591.7,590.61,1.087]
[1741484272594,0.89681767,591.69,590.61,1.087]
[1741484272796,1.20775298,591.68,590.61,1.087]
[1741484273096,1.20775298,591.67,590.61,1.087]
[1741484273297,1.20775298,591.66,590.61,1.087]
[1741484273492,1.20775298,591.65,590.61,1.087]
[1741484273694,1.20775298,591.64,590.61,1.087]
[1741484273894,1.20775298,591.63,590.61,1.087]
[1741484274094,1.20775298,591.62,590.61,1.087]
[1741484274295,1.20775298,591.61,590.61,1.087]
[1741484274496,1.20775298,591.6,590.61,1.087]
[1741484274697,1.20775298,591.59,590.61,1.087]
[1741484274890,0.89681767,591.58,590.61,1.087]
[1741484275090,1.20775298,591.57,590.61,1.087]
[1741484275293,1.20775298,591.56,590.61,1.087]
[1741484275495,1.20775298,591.55,590.61,1.087]
[1741484275693,1.20775298,591.54,590.61,1.087]
[1741484275893,1.20775298,591.53,590.61,1.087]
[1741484276198,1.20775298,591.52,590.61,1.087]
[1741484276392,1.20775298,591.51,590.61,1.087]
[1741484276598,1.20775298,591.5,590.61,1.087]
[1741484276796,1.20775298,591.49,590.61,1.087]
[1741484276993,0.89681767,591.48,590.61,1.087]
[1741484277195,0.89681767,591.47,590.61,1.087]
[1741484277401,0.89681767,591.46,590.61,1.087]
[1741484277594,0.89681767,591.45,590.61,1.087]
[1741484277793,0.89681767,591.44,590.61,1.087]
[1741484277995,0.89681767,591.43,590.61,1.087]
[1741484278196,0.89681767,591.42,590.61,1.087]
[1741484278399,0.89681767,591.41,590.61,1.087]
[1741484278698,0.89681767,591.4,590.61,1.087]
[1741484278899,0.89681767,591.39,590.61,1.087]
[1741484279097,0.89681767,591.38,590.61,1.087]
[1741484279401,0.89681767,591.37,590.61,1.087]
[1741484279595,0.89681767,591.36,590.61,1.087]
[1741484279799,0.89681767,591.35,590.61,1.087]
[1741484280002,0.89650088,591.34,590.61,1.087]
[1741484280298,0.29448725,591.38,590.61,1.087]
[1741484280299,0.89650088,591.33,590.61,1.087]
[1741484280503,0.89650088,591.32,590.61,1.087]
[1741484280698,0.89650088,591.31,590.61,1.087]
[1741484280899,0.89650088,591.3,590.61,1.087]
[1741484281104,0.89650088,591.29,590.61,1.087]
[1741484281403,0.89650088,591.28,590.61,1.087]
[1741484281603,0.89650088,591.27,590.61,1.087]
[1741484281806,0.89650088,591.26,590.61,1.087]
[1741484282004,0.89650088,591.25,590.61,1.087]
[1741484282206,0.89650088,591.24,590.61,1.087]
[1741484282499,0.89650088,591.23,590.61,1.087]
[1741484282700,0.89650088,591.22,590.61,1.087]
[1741484282906,0.89650088,591.21,590.62,0.872]
[1741484283101,0.89650088,591.2,590.62,0.872]